bitfinex/quotes_SOLUSD_20250616
["timestamp","ask_amount","ask_price","bid_price","bid_amount"]
[1750098789853,10.86481338,158.01,157.97,7.56337582]
[1750098790049,10.86481338,158.01,157.96,7.56337582]
[1750098790253,0.28432314,158.0,157.96,7.56337582]
[1750098790458,7.84769896,158.0,157.95,7.56337582]
[1750098790650,0.14216157,157.99,157.93,88.63178814]
[1750098790839,0.14216157,157.99,157.94,7.56337582]
[1750098790840,0.28432314,157.98,157.94,7.56337582]
[1750098791039,7.84769896,157.98,157.94,7.56337582]
[1750098791369,0.28432314,157.98,157.94,7.56337582]
[1750098791742,7.84769896,157.98,157.94,7.56337582]
[1750098793152,0.28432314,157.98,157.94,7.56337582]
[1750098793554,0.28432314,157.98,157.94,13.89473574]
[1750098794263,7.84769896,157.98,157.93,96.19515409]
[1750098794452,0.28432314,157.98,157.94,7.56337582]
[1750098794661,0.28432314,157.98,157.95,7.56337582]
[1750098794967,0.28432314,157.98,157.94,7.56337582]
[1750098795144,0.28432314,157.98,157.93,88.63177827]
[1750098795345,0.28432314,157.98,157.94,7.56337582]
[1750098795946,7.84769896,157.98,157.93,96.19515409]
[1750098796146,7.56337582,157.97,157.93,6.33177827]
[1750098797360,6.61434756,157.98,157.93,6.33177827]
[1750098797661,7.84769896,157.98,157.93,7.56337582]
[1750098798042,14.17771721,157.98,157.93,7.56337582]
[1750098798673,0.28432314,157.96,157.93,7.56337582]
[1750098799065,0.28432314,157.96,157.93,13.89516553]
[1750098799869,0.28432314,157.96,157.93,6.33178971]
[1750098800870,0.28432314,157.96,157.92,13.89553704]
[1750098803045,7.84769896,157.96,157.91,13.89609699]
[1750098805069,0.28432314,157.96,157.92,13.8953608]
[1750098805241,7.98986053,157.97,157.92,13.8953608]
[1750098805859,7.98986053,157.97,157.92,6.33198498]
[1750098806058,7.98986053,157.97,157.92,13.8953608]
[1750098806874,7.56337582,157.96,157.92,13.8953608]
[1750098807090,15.0177643,157.96,157.92,13.8953608]
[1750098808378,7.45438848,157.96,157.92,13.8953608]
[1750098808559,15.0177643,157.96,157.92,13.8953608]
[1750098808752,7.98986053,157.97,157.92,13.8953608]
[1750098809166,7.98986053,157.97,157.93,7.56337582]
[1750098809471,0.42648471,157.97,157.93,7.56337582]
[1750098809762,28.56978992,157.97,157.92,6.33198498]
[1750098810069,7.56337582,157.96,157.92,6.33198498]
[1750098810289,7.56337582,157.96,157.92,13.8953608]
[1750098810777,22.23941504,157.97,157.92,13.8953608]
[1750098812251,7.56337582,157.96,157.92,13.8953608]
[1750098813275,18.54214818,157.96,157.92,6.33198498]
[1750098815779,18.54214818,157.96,157.91,13.89609699]
[1750098816073,7.56337582,157.95,157.91,6.33272117]
[1750098816662,7.84769896,157.94,157.88,6.33392449]
[1750098816869,7.84769896,157.92,157.87,82.3]
[1750098817066,7.56337582,157.92,157.87,13.89752165]
[1750098817261,7.98986053,157.94,157.89,7.56337582]
[1750098817661,7.98986053,157.94,157.89,13.8965765]
[1750098818198,14.32141621,157.94,157.89,13.8965765]
[1750098818401,7.98986053,157.94,157.89,13.8965765]
[1750098818565,14.3213989,157.94,157.89,13.8965765]
[1750098819878,6.75802308,157.94,157.89,13.8965765]
[1750098820084,14.3213989,157.94,157.89,13.8965765]
[1750098820291,0.28432314,157.94,157.9,7.56337582]
[1750098822279,0.28432314,157.94,157.9,13.89615188]
[1750098823375,0.28432314,157.94,157.87,98.13581427]
[1750098823376,7.84769896,157.94,157.89,7.56337582]
[1750098823588,7.56337582,157.93,157.88,13.89730031]
[1750098825086,13.89530959,157.93,157.88,13.89730031]
[1750098826426,14.32219349,157.92,157.87,96.19759968]
[1750098827104,7.56337582,157.91,157.87,96.19759968]
[1750098827689,6.75881767,157.92,157.87,96.19759968]
[1750098827905,14.32219349,157.92,157.87,96.19759968]
[1750098828726,14.32219349,157.92,157.87,13.89759968]
[1750098828916,0.42648471,157.92,157.87,13.89759968]
[1750098829216,7.98986053,157.92,157.87,13.89759968]
[1750098829913,11.29354054,157.92,157.87,13.89759968]
[1750098830207,38.04,157.91,157.87,13.89759968]
[1750098830413,11.29354054,157.92,157.87,13.89759968]
[1750098830622,7.84769896,157.9,157.85,108.3]
[1750098830819,7.56337582,157.89,157.85,7.56337582]
[1750098831032,7.56337582,157.9,157.86,7.56337582]
[1750098831419,7.56337582,157.9,157.85,13.89834396]
[1750098831918,7.56337582,157.9,157.86,7.56337582]
[1750098833022,7.56337582,157.9,157.86,13.89790644]
[1750098835013,7.84769896,157.9,157.86,13.89790644]
[1750098838496,10.86705583,157.92,157.88,7.56337582]
[1750098839526,3.30368001,157.92,157.88,7.56337582]
[1750098839820,10.86705583,157.92,157.88,13.896962]
[1750098840023,3.30368001,157.92,157.88,13.896962]
[1750098840626,5.76432314,157.94,157.91,7.56337582]
[1750098840825,10.97877236,157.96,157.92,7.56337582]
[1750098841002,10.97877236,157.96,157.93,7.56337582]
[1750098841198,10.97877236,157.96,157.94,7.56337582]
[1750098841826,10.97877236,157.96,157.94,13.89473062]
[1750098845636,7.84769896,157.95,157.9,7.56337582]
[1750098845926,0.42648471,157.95,157.91,7.56337582]
[1750098846306,10.97877236,157.96,157.92,7.56337582]
[1750098847026,10.97877236,157.96,157.92,13.89549742]
[1750098848429,18.54214818,157.96,157.92,13.89549742]
[1750098849507,0.28432314,157.95,157.91,7.56337582]
[1750098849816,7.84769896,157.95,157.91,7.56337582]
[1750098850021,7.84769896,157.95,157.9,89.86337582]
[1750098850655,14.17891516,157.95,157.9,96.19635792]
[1750098851539,7.56337582,157.94,157.9,89.86337582]
[1750098851839,0.28432314,157.93,157.9,82.3]
[1750098852011,7.56337582,157.93,157.9,82.3]
[1750098852214,7.98986053,157.94,157.9,89.86337582]
[1750098852438,7.98986053,157.94,157.9,7.56337582]
[1750098852905,0.28432314,157.94,157.9,13.8964975]
[1750098853109,10.97877236,157.96,157.92,7.56337582]
[1750098854110,24.87304344,157.96,157.91,7.56337582]
[1750098855317,24.87304344,157.96,157.91,7.06337582]
[1750098855520,7.98986053,157.95,157.91,7.06337582]
[1750098857141,14.3212261,157.95,157.9,7.56337582]
[1750098857631,7.56337582,157.94,157.89,7.56337582]
[1750098857836,7.56337582,157.92,157.88,7.56337582]
[1750098859136,7.56337582,157.92,157.88,13.89694245]
[1750098860144,7.56337582,157.92,157.87,96.19753892]
[1750098860322,7.56337582,157.92,157.87,13.89753892]
[1750098860525,7.84769896,157.92,157.87,13.89753892]
[1750098860836,7.84769896,157.92,157.87,6.3341631]
[1750098861037,7.84769896,157.92,157.87,13.89753892]
[1750098862542,7.84769896,157.92,157.88,7.56337582]
[1750098862840,10.97877236,157.96,157.91,7.56337582]
[1750098863032,10.97877236,157.96,157.93,7.56337582]
[1750098863737,10.97877236,157.96,157.9,32.33312222]
[1750098863944,10.97877236,157.96,157.93,7.56337582]
[1750098864936,10.97877236,157.96,157.92,6.33192607]
[1750098865134,7.56337582,157.95,157.9,33.56337582]
[1750098865319,7.84769896,157.95,157.9,33.56337582]
[1750098865716,0.28432314,157.95,157.91,7.56337582]
[1750098866557,0.28432314,157.95,157.91,13.89602701]
[1750098866737,10.97877236,157.96,157.92,7.56337582]
[1750098866923,10.97877236,157.96,157.91,6.33265119]
[1750098866924,10.97877236,157.96,157.93,7.56337582]
[1750098867726,10.97877236,157.96,157.92,7.56337582]
[1750098868727,10.97877236,157.96,157.92,13.89565532]
[1750098872252,24.87287385,157.96,157.92,7.56337582]
[1750098872447,24.87287385,157.96,157.91,7.56337582]
[1750098872962,7.84769896,157.95,157.9,7.56337582]
[1750098873204,7.84769896,157.95,157.91,7.56337582]
[1750098874553,14.17884133,157.95,157.91,7.56337582]
[1750098874930,14.17884133,157.95,157.9,13.89624099]
[1750098875756,7.84769896,157.95,157.9,13.89624099]
[1750098875946,7.84769896,157.95,157.91,7.56337582]
[1750098877279,0.28432314,157.95,157.92,7.56337582]
[1750098878169,10.97877236,157.96,157.92,13.89569466]
[1750098880976,18.54214818,157.96,157.92,13.89569466]
[1750098881573,24.8728689,157.96,157.92,13.89569466]
[1750098881769,18.54214818,157.96,157.92,7.56337582]
[1750098881972,24.8729834,157.96,157.92,7.56337582]
[1750098882175,24.8729834,157.96,157.91,13.89591699]
[1750098882668,10.97877236,157.96,157.93,7.56337582]
[1750098884775,10.97877236,157.96,157.93,13.89513811]
[1750098887788,10.97877236,157.96,157.94,7.56337582]
[1750098888292,10.97877236,157.96,157.93,13.89513811]
[1750098890479,10.97877236,157.96,157.94,7.56337582]
[1750098891063,10.97877236,157.96,157.95,7.56337582]
[1750098891464,10.97877236,157.96,157.95,13.89449326]
[1750098893498,10.97877236,157.96,157.95,7.56337582]
[1750098893665,10.97877236,157.96,157.94,6.33139064]
[1750098893666,10.97877236,157.96,157.94,13.89476646]
[1750098894287,10.97877236,157.96,157.95,7.56337582]
[1750098896283,10.97877236,157.96,157.95,13.89449326]
[1750098896873,10.97877236,157.96,157.95,7.56337582]
[1750098897091,10.97877236,157.96,157.94,13.89474538]
[1750098898599,10.97877236,157.96,157.95,7.56337582]
[1750098899299,10.97877236,157.96,157.94,6.33136956]
[1750098899471,10.97877236,157.96,157.95,7.56337582]
[1750098899973,10.97877236,157.96,157.94,7.56337582]
[1750098900672,0.28432314,157.99,157.95,7.56337582]
[1750098901294,7.56337582,157.98,157.94,7.56337582]
[1750098902184,7.56337582,157.98,157.94,13.89478656]
[1750098904401,14.17726625,157.99,157.94,13.89478656]
[1750098904602,6.61359546,158.0,157.95,7.56337582]
[1750098904780,14.17697128,158.0,157.95,7.56337582]
[1750098906005,7.56337582,157.99,157.94,13.89476007]
[1750098906587,7.84769896,157.96,157.92,82.3]
[1750098906907,7.84769896,157.96,157.91,7.56337582]
[1750098907603,7.56337582,157.95,157.91,7.56337582]
[1750098907804,13.89450662,157.95,157.91,7.56337582]
[1750098910380,7.84769896,157.93,157.89,7.56337582]
[1750098910598,45.88769896,157.93,157.88,13.89718481]
[1750098910804,7.84769896,157.93,157.88,13.89718481]
[1750098910988,0.28432314,157.93,157.88,13.89718481]
[1750098911187,7.84769896,157.93,157.88,13.89718481]
[1750098911411,7.56337582,157.92,157.87,122.19755296]
[1750098911710,7.56337582,157.91,157.87,122.19755296]
[1750098912289,7.56337582,157.92,157.88,7.56337582]
[1750098912617,0.28432314,157.93,157.9,7.56337582]
[1750098912791,6.33167496,157.94,157.9,7.56337582]
[1750098913207,13.89505078,157.94,157.9,7.56337582]
[1750098914114,13.89505078,157.94,157.89,13.89673501]
[1750098914303,7.56337582,157.93,157.89,13.89673501]
[1750098915410,13.89535128,157.93,157.88,13.8971753]
[1750098915710,7.84769896,157.92,157.88,6.33379948]
[1750098916094,7.84769896,157.92,157.87,122.19752235]
[1750098917486,0.28432314,157.92,157.87,122.19752235]
[1750098917787,7.84769896,157.92,157.87,122.19752235]
[1750098919413,14.18009156,157.92,157.87,114.63414653]
[1750098919601,14.18009156,157.92,157.87,122.19752235]
[1750098920416,14.18009156,157.92,157.87,39.89752235]
[1750098922414,7.56337582,157.91,157.85,87.78]
[1750098922720,7.56337582,157.91,157.86,7.56337582]
[1750098922898,7.56337582,157.91,157.86,13.89810279]
[1750098923306,7.56337582,157.91,157.87,7.56337582]
[1750098924504,7.56337582,157.91,157.87,13.89732717]
[1750098925921,7.56337582,157.91,157.86,13.89810279]
[1750098926221,7.56337582,157.9,157.86,6.33472697]
[1750098926405,7.56337582,157.88,157.84,82.3]
[1750098926604,7.56337582,157.88,157.83,121.17476627]
[1750098926915,7.56337582,157.88,157.84,7.56337582]
[1750098927505,7.56337582,157.88,157.84,13.89890334]
[1750098927700,13.89735673,157.88,157.84,13.89890334]
[1750098927921,7.84769896,157.87,157.83,113.61139045]
[1750098928123,7.56337582,157.85,157.83,31.31139045]
[1750098928322,7.56337582,157.84,157.8,82.3]
[1750098928500,7.56337582,157.81,157.77,88.63821455]
[1750098928706,7.56337582,157.8,157.75,89.86337582]
[1750098928903,7.56337582,157.8,157.75,96.20237056]
[1750098930803,7.56337582,157.8,157.76,7.56337582]
[1750098931511,7.56337582,157.8,157.76,13.90175072]
[1750098932525,7.56337582,157.8,157.75,6.33914421]
[1750098932724,7.56337582,157.78,157.73,7.56337582]
[1750098932916,0.42648471,157.81,157.72,13.9037258]
[1750098932917,7.56337582,157.77,157.72,13.9037258]
[1750098933107,7.56337582,157.77,157.73,7.56337582]
[1750098933707,7.56337582,157.77,157.73,13.90298647]
[1750098934513,7.56337582,157.77,157.73,6.33961065]
[1750098935415,7.56337582,157.75,157.72,82.3]
[1750098935618,0.42648471,157.77,157.72,82.3]
[1750098935925,7.56337582,157.76,157.72,88.64027868]
[1750098936944,7.56337582,157.76,157.72,82.3]
[1750098937149,7.56337582,157.75,157.71,13.90411052]
[1750098937709,7.56337582,157.74,157.69,6.34155621]
[1750098938040,7.56337582,157.75,157.7,7.56337582]
[1750098939502,7.56337582,157.75,157.71,6.34075201]
[1750098940837,21.73818352,157.77,157.73,7.56337582]
[1750098941226,14.1748077,157.77,157.73,7.56337582]
[1750098941528,14.03264613,157.77,157.73,7.56337582]
[1750098941729,14.03264613,157.77,157.74,7.56337582]
[1750098941913,13.89048456,157.77,157.75,7.56337582]
[1750098942830,13.89048456,157.77,157.75,13.90215532]
[1750098943026,13.89048456,157.77,157.72,6.34034998]
[1750098943234,21.45386038,157.77,157.73,7.56337582]
[1750098944032,13.89048456,157.77,157.73,7.56337582]
[1750098944238,13.89048456,157.77,157.74,7.56337582]
[1750098944737,13.89048456,157.77,157.73,7.56337582]
[1750098946328,13.89048456,157.77,157.73,13.90323197]
[1750098947537,27.79221325,157.77,157.72,6.34034998]
[1750098947726,27.79221325,157.77,157.7,7.56337582]
[1750098947727,7.70553739,157.75,157.7,7.56337582]
[1750098948034,16.81683933,157.75,157.7,7.56337582]
[1750098948268,9.25346351,157.75,157.7,7.56337582]
[1750098948437,9.25346351,157.75,157.72,7.56337582]
[1750098949527,9.25346351,157.75,157.71,13.90385916]
[1750098951027,9.25346351,157.75,157.72,7.56337582]
[1750098951341,9.25346351,157.75,157.71,6.34048334]
[1750098951342,9.25346351,157.75,157.73,7.56337582]
[1750098951548,9.25346351,157.75,157.71,6.34048334]
[1750098951549,9.25346351,157.75,157.72,7.56337582]
[1750098952924,9.25346351,157.75,157.72,13.90364588]
[1750098955537,9.25346351,157.75,157.71,7.56337582]
[1750098956052,16.81683933,157.75,157.7,13.90452991]
[1750098956749,23.15609925,157.75,157.7,13.90452991]
[1750098956949,7.56337582,157.73,157.69,82.3]
[1750098957334,7.56337582,157.72,157.69,82.3]
[1750098957735,7.56337582,157.71,157.69,82.3]
[1750098957934,7.56337582,157.7,157.66,6.3423776]
[1750098958255,7.56337582,157.7,157.66,13.90575342]
[1750098958561,7.56337582,157.71,157.66,13.90575342]
[1750098958851,0.14216157,157.74,157.7,7.56337582]
[1750098959027,0.14216157,157.74,157.71,7.56337582]
[1750098959840,9.11130194,157.75,157.66,130.49928486]
[1750098960237,16.67467776,157.75,157.7,7.56337582]
[1750098960574,16.67467776,157.75,157.71,7.56337582]
[1750098960753,16.67467776,157.75,157.66,130.49928486]
[1750098960754,9.11130194,157.75,157.74,7.56337582]
[1750098961861,9.11130194,157.75,157.72,6.34034998]
[1750098962142,0.28432314,157.74,157.7,13.90437026]
[1750098963334,0.28432314,157.74,157.71,7.56337582]
[1750098964136,0.28432314,157.74,157.68,6.34195839]
[1750098964374,0.28432314,157.74,157.71,7.56337582]
[1750098964542,0.28432314,157.74,157.7,7.56337582]
[1750098966141,0.28432314,157.74,157.71,6.34075201]
[1750098966343,0.28432314,157.74,157.71,13.90412783]
[1750098967368,9.11130194,157.75,157.71,13.90412783]
[1750098967556,9.11130194,157.75,157.73,7.56337582]
[1750098967756,9.11130194,157.75,157.74,7.56337582]
[1750098968150,9.11130194,157.75,157.74,13.9029219]
[1750098968982,9.11130194,157.75,157.74,6.33954608]
[1750098969154,9.11130194,157.75,157.74,13.9029219]
[1750098969472,9.11130194,157.75,157.73,13.90314866]
[1750098969651,13.89048456,157.77,157.74,7.56337582]
[1750098969971,13.89048456,157.77,157.76,7.56337582]
[1750098970271,13.89048456,157.77,157.76,13.90211821]
[1750098970468,13.89048456,157.77,157.75,13.90235268]
[1750098970670,13.89048456,157.77,157.74,13.90277968]
[1750098974464,45.60337582,157.75,157.68,82.3]
[1750098974671,55.37372694,157.75,157.7,7.56337582]
[1750098974868,9.77035112,157.75,157.74,7.56337582]
[1750098975853,9.77035112,157.75,157.74,13.9029219]
[1750098976778,9.77035112,157.75,157.74,6.33954608]
[1750098976983,9.77035112,157.75,157.74,13.9029219]
[1750098977186,9.77035112,157.75,157.74,6.33954608]
[1750098977363,9.77035112,157.75,157.74,13.9029219]
[1750098979178,9.77035112,157.75,157.74,6.33954608]
[1750098979385,9.77035112,157.75,157.74,13.9029219]
[1750098980978,9.77035112,157.75,157.74,13.4029219]
[1750098982682,9.77035112,157.75,157.71,88.64073319]
[1750098982683,17.33372694,157.75,157.71,88.64073319]
[1750098982881,17.33372694,157.75,157.71,96.20410901]
[1750098982882,4.74364349,157.74,157.71,96.20410901]
[1750098983082,4.74379833,157.73,157.71,96.20410901]
[1750098983262,9.77035112,157.75,157.71,96.20410901]
[1750098983461,4.74391596,157.74,157.71,89.86337582]
[1750098983763,4.74391596,157.73,157.71,82.3]
[1750098983963,17.33372694,157.75,157.71,82.3]
[1750098984157,4.74415167,157.74,157.71,82.3]
[1750098984383,4.88631324,157.73,157.67,90.2361]
[1750098984583,4.74439577,157.72,157.69,7.56337582]
[1750098984791,0.14216157,157.73,157.69,7.56337582]
[1750098985085,9.77035112,157.75,157.72,7.56337582]
[1750098985386,4.7439126,157.74,157.71,7.56337582]
[1750098985584,4.7439126,157.73,157.71,7.56337582]
[1750098985755,9.77035112,157.75,157.71,7.56337582]
[1750098985960,4.74405956,157.74,157.71,7.56337582]
[1750098986160,4.74405956,157.73,157.71,7.56337582]
[1750098986363,9.77035112,157.75,157.71,7.56337582]
[1750098986569,4.74400248,157.74,157.71,7.56337582]
[1750098986781,9.77035112,157.75,157.71,7.56337582]
[1750098987268,4.74392052,157.74,157.71,7.56337582]
[1750098987585,4.74392052,157.73,157.71,13.90407568]
[1750098987765,9.77035112,157.75,157.71,13.90407568]
[1750098987965,4.74403415,157.74,157.71,13.90407568]
[1750098988179,4.74403415,157.73,157.72,7.56337582]
[1750098988590,9.77035112,157.75,157.72,7.56337582]
[1750098988776,4.744143,157.74,157.72,7.56337582]
[1750098988977,9.77035112,157.75,157.72,7.56337582]
[1750098989177,4.74414162,157.74,157.72,7.56337582]
[1750098989372,9.77035112,157.75,157.72,13.90371618]
[1750098989675,4.74411719,157.74,157.72,13.90371618]
[1750098989869,9.77035112,157.75,157.72,13.90371618]
[1750098990098,4.74421607,157.74,157.72,13.90371618]
[1750098990399,9.77035112,157.75,157.72,13.90371618]
[1750098990589,4.74421539,157.74,157.72,13.90371618]
[1750098990793,9.77035112,157.75,157.73,7.56337582]
[1750098994368,4.74425789,157.74,157.71,13.90403829]
[1750098994569,4.74425789,157.73,157.71,13.90403829]
[1750098994768,17.33372694,157.75,157.7,6.34099652]
[1750098994978,17.33372694,157.75,157.7,13.90437234]
[1750098994979,4.74458709,157.74,157.7,13.90437234]
[1750098995186,4.74458709,157.73,157.7,13.90437234]
[1750098995374,7.56337582,157.74,157.69,6.34139808]
[1750098995568,4.74428079,157.73,157.69,6.34139808]
[1750098995788,4.74428079,157.72,157.69,13.9047739]
[1750098995965,13.90303586,157.74,157.69,13.9047739]
[1750098996165,4.74451668,157.73,157.69,13.9047739]
[1750098996372,4.74451668,157.72,157.69,13.9047739]
[1750098996601,13.90303586,157.74,157.69,13.9047739]
[1750098996802,4.74430258,157.73,157.7,7.56337582]
[1750098996972,4.74430258,157.72,157.7,7.56337582]
[1750098997178,13.90303586,157.74,157.7,7.56337582]
[1750098997378,4.74430327,157.73,157.7,7.56337582]
[1750098997574,13.90303586,157.74,157.7,7.56337582]
[1750098997575,4.74430327,157.72,157.7,7.56337582]
[1750098997789,13.90303586,157.74,157.7,7.56337582]
[1750098997973,4.74398013,157.73,157.7,7.56337582]
[1750098998310,4.74398013,157.72,157.7,7.56337582]
[1750098998596,13.90303586,157.74,157.69,6.34139808]
[1750098998597,0.14216157,157.73,157.69,6.34139808]
[1750098998806,6.48211488,157.73,157.69,13.9047739]
[1750098998979,4.74356332,157.72,157.69,6.34139808]
[1750098999181,14.0454907,157.73,157.69,7.56337582]
[1750098999379,4.74356401,157.72,157.69,7.56337582]
[1750098999591,9.77035112,157.75,157.71,7.56337582]
[1750098999782,4.74336632,157.74,157.72,7.56337582]
[1750098999979,4.74336632,157.73,157.72,7.56337582]
[1750099000872,9.77035112,157.75,157.72,13.9037258]
[1750099001072,4.74300339,157.74,157.72,6.34034998]
[1750099001356,9.77035112,157.75,157.73,7.56337582]
[1750099001540,9.77035112,157.75,157.74,7.56337582]
[1750099001989,14.51341737,157.75,157.74,7.56337582]
[1750099002814,14.51341737,157.75,157.73,7.56337582]
[1750099003117,4.74306625,157.74,157.69,6.34155621]
[1750099003315,4.74306625,157.73,157.69,13.90493203]
[1750099003611,4.74574619,157.72,157.71,7.56337582]
[1750099003988,4.74574619,157.72,157.69,6.34155621]
[1750099004188,0.14216157,157.74,157.71,7.56337582]
[1750099004403,4.74576885,157.73,157.7,7.56337582]
[1750099004625,0.14216157,157.74,157.7,7.56337582]
[1750099004819,4.74577415,157.73,157.7,7.56337582]
[1750099005009,4.74577415,157.72,157.7,7.56337582]
[1750099005212,6.48172294,157.74,157.7,7.56337582]
[1750099005414,4.74577354,157.73,157.7,7.56337582]
[1750099005720,4.74577354,157.72,157.7,7.56337582]
[1750099005929,6.48172294,157.74,157.7,7.56337582]
[1750099006112,4.74521236,157.73,157.7,7.56337582]
[1750099006315,4.74521236,157.72,157.7,7.56337582]
[1750099006504,6.48172294,157.74,157.7,7.56337582]
[1750099006505,0.14216157,157.73,157.7,7.56337582]
[1750099006832,6.48172294,157.74,157.7,7.56337582]
[1750099006833,4.74521373,157.72,157.7,6.34109333]
[1750099007128,9.77035112,157.75,157.7,6.34109333]
[1750099007129,9.77035112,157.75,157.71,7.56337582]
[1750099007323,4.74521373,157.74,157.73,7.56337582]
[1750099008829,4.74521373,157.74,157.7,48.19397855]
[1750099009023,9.77035112,157.75,157.73,7.56337582]
[1750099009231,4.74503788,157.74,157.73,13.90332383]
[1750099010307,4.74526713,157.74,157.73,13.90332383]
[1750099012717,4.74525723,157.74,157.73,13.90332383]
[1750099013032,9.77035112,157.75,157.73,13.90332383]
[1750099013233,4.74527056,157.74,157.73,13.90332383]
[1750099013546,4.74527056,157.74,157.72,13.90359463]
[1750099013714,4.7453238,157.73,157.72,13.90359463]
[1750099015428,9.77035112,157.75,157.72,13.90359463]
[1750099015630,4.74535862,157.74,157.73,7.56337582]
[1750099016730,9.77035112,157.75,157.73,7.56337582]
[1750099017920,9.77035112,157.75,157.73,13.90318]
[1750099018406,9.77035112,157.75,157.74,7.56337582]
[1750099019116,9.77035112,157.75,157.73,6.33980418]
[1750099019312,9.77035112,157.75,157.72,13.90356746]
[1750099020120,7.56337582,157.74,157.7,82.3]
[1750099021021,7.56337582,157.74,157.69,7.56337582]
[1750099021326,9.77035112,157.75,157.72,7.56337582]
[1750099023370,7.84769896,157.74,157.69,6.34155621]
[1750099023547,7.84769896,157.74,157.69,13.90493203]
[1750099024227,4.7456789,157.73,157.69,13.90493203]
[1750099024426,7.84769896,157.74,157.69,13.90493203]
[1750099024627,14.18730523,157.74,157.69,13.90493203]
[1750099024835,7.56337582,157.73,157.69,13.90493203]
[1750099026148,7.56337582,157.73,157.69,7.56337582]
[1750099026149,13.9033614,157.73,157.69,7.56337582]
[1750099026647,13.9033614,157.73,157.68,32.34184892]
[1750099026825,13.9033614,157.73,157.68,39.90522474]
[1750099027347,4.74972135,157.72,157.68,39.90522474]
[1750099027551,4.74972135,157.71,157.68,32.34184892]
[1750099027724,13.9033614,157.73,157.68,39.90522474]
[1750099027920,7.56337582,157.71,157.67,88.64223984]
[1750099028140,0.28432314,157.73,157.66,13.90600298]
[1750099028141,12.31250995,157.7,157.66,13.90600298]
[1750099028441,4.74913413,157.69,157.66,13.90600298]
[1750099028752,7.56337582,157.71,157.67,7.56337582]
[1750099029048,4.74943356,157.7,157.67,7.56337582]
[1750099029231,4.74943356,157.69,157.67,7.56337582]
[1750099029427,7.56337582,157.71,157.66,13.90600298]
[1750099029633,4.74943429,157.7,157.66,13.90600298]
[1750099029946,4.74943429,157.69,157.66,13.90600298]
[1750099030149,7.56337582,157.71,157.66,13.90600298]
[1750099030362,4.74733542,157.7,157.66,13.90600298]
[1750099030649,7.56337582,157.71,157.66,13.90600298]
[1750099030890,4.74733542,157.7,157.66,13.90600298]
[1750099031025,7.56337582,157.71,157.66,13.90600298]
[1750099031227,4.74711884,157.7,157.66,13.90600298]
[1750099031429,7.56337582,157.71,157.66,13.90600298]
[1750099031628,4.74721782,157.7,157.66,13.90600298]
[1750099031846,7.56337582,157.71,157.66,13.90600298]
[1750099032034,4.74591665,157.7,157.66,13.90600298]
[1750099032348,7.56337582,157.71,157.66,13.90600298]
[1750099032537,4.7460163,157.7,157.66,13.90600298]
[1750099032745,7.56337582,157.71,157.66,13.90600298]
[1750099032956,4.74601561,157.7,157.66,13.90600298]
[1750099033148,7.56337582,157.7,157.66,13.90600298]
[1750099034160,4.74592757,157.69,157.66,13.90600298]
[1750099034329,7.56337582,157.7,157.66,13.90600298]
[1750099034532,4.74600179,157.69,157.66,13.90600298]
[1750099034750,7.56337582,157.7,157.66,13.90600298]
[1750099035744,6.34084896,157.71,157.66,13.90600298]
[1750099035943,12.30802419,157.7,157.66,13.90600298]
[1750099036156,7.56337582,157.7,157.66,13.90600298]
[1750099037851,7.56337582,157.7,157.66,6.34262716]
[1750099038071,7.56337582,157.7,157.66,13.90600298]
[1750099038874,4.74397272,157.69,157.66,6.34262716]
[1750099039078,7.56337582,157.7,157.66,6.34262716]
[1750099039270,4.74421211,157.69,157.66,6.34262716]
[1750099039458,7.56337582,157.7,157.66,6.34262716]
[1750099039778,7.56337582,157.7,157.66,7.56337582]
[1750099040458,4.74332113,157.69,157.66,7.56337582]
[1750099040663,7.56337582,157.7,157.66,7.56337582]
[1750099040864,4.74338418,157.69,157.66,7.56337582]
[1750099041176,7.56337582,157.7,157.66,7.56337582]
[1750099041371,4.74295969,157.69,157.66,13.90580003]
[1750099041558,7.56337582,157.7,157.66,13.90580003]
[1750099044174,4.74095611,157.69,157.66,13.90580003]
[1750099044374,7.84769896,157.71,157.66,13.90580003]
[1750099044586,4.74076761,157.7,157.66,13.90580003]
[1750099044767,7.84769896,157.71,157.66,13.90580003]
[1750099045080,4.74041867,157.7,157.66,13.90580003]
[1750099045381,7.84769896,157.71,157.66,13.90580003]
[1750099045570,4.74041015,157.7,157.66,13.90580003]
[1750099045748,7.84769896,157.71,157.66,13.90580003]
[1750099045954,4.74010617,157.7,157.66,13.90580003]
[1750099046166,7.84769896,157.71,157.66,13.90580003]
[1750099046369,4.74004653,157.7,157.66,13.90580003]
[1750099046667,7.84769896,157.71,157.66,13.90580003]
[1750099047269,7.84769896,157.71,157.67,7.56337582]
[1750099047579,7.84769896,157.71,157.67,13.90544764]
[1750099049470,7.84769896,157.71,157.66,7.56337582]
[1750099051583,7.84769896,157.71,157.67,6.34236062]
[1750099056290,0.28432314,157.72,157.69,7.56337582]
[1750099056488,9.77035112,157.75,157.71,7.56337582]
[1750099056793,9.77035112,157.75,157.73,7.56337582]
[1750099057575,9.77035112,157.75,157.74,7.56337582]
[1750099058394,9.77035112,157.75,157.74,13.9029219]
[1750099067580,9.77035112,157.75,157.74,6.33954608]